bitfinex/quotes_SOLUSD_20250130
["timestamp","ask_amount","ask_price","bid_price","bid_amount"]
[1738268930367,0.03,240.59,240.52,7.96182687]
[1738268931257,0.03,240.59,240.54,7.96182687]
[1738268932373,0.03,240.59,240.52,7.96182687]
[1738268933165,0.03,240.59,240.52,12.11942687]
[1738268933978,0.03,240.59,240.52,7.96182687]
[1738268934179,13.66282853,240.57,240.5,12.11962687]
[1738268935472,17.81962853,240.57,240.5,7.96182687]
[1738268936275,0.25098,240.57,240.52,7.96182687]
[1738268937063,0.25098,240.57,240.52,8.58543622]
[1738268938284,0.25098,240.57,240.54,7.96182687]
[1738268938767,0.25098,240.57,240.53,4.1574]
[1738268939380,0.03,240.59,240.55,7.96182687]
[1738268939584,0.03,240.59,240.58,7.96182687]
[1738268940264,0.03,240.59,240.58,12.11842687]
[1738268940767,0.03,240.59,240.58,7.96182687]
[1738268941667,0.03,240.59,240.58,12.7418653]
[1738268941867,0.03,240.59,240.58,12.11842687]
[1738268943882,0.03,240.59,240.56,12.11852687]
[1738268944982,0.03,240.59,240.56,7.96182687]
[1738268945172,0.03,240.59,240.54,7.96182687]
[1738268946985,8.24280687,240.59,240.51,4.1576]
[1738268947375,0.25098,240.55,240.48,8.5854412]
[1738268947693,0.25098,240.5,240.44,7.96182687]
[1738268947859,0.25098,240.5,240.46,7.96182687]
[1738268948056,0.25098,240.53,240.46,7.96182687]
[1738268948272,0.25098,240.51,240.44,12.12082687]
[1738268949082,0.12549,240.5,240.44,7.96182687]
[1738268949384,0.25098,240.49,240.44,7.96182687]
[1738268950281,0.25098,240.49,240.42,12.12112687]
[1738268951385,0.25098,240.47,240.42,7.96182687]
[1738268952984,0.25098,240.47,240.42,12.12112687]
[1738268956180,80.6,240.5,240.44,7.96182687]
[1738268957397,0.25098,240.49,240.45,4.1588]
[1738268957892,0.25098,240.49,240.46,7.96182687]
[1738268958788,0.25098,240.49,240.48,7.96182687]
[1738268958987,87.1342,240.56,240.48,7.96182687]
[1738268959191,13.66282853,240.55,240.5,7.96182687]
[1738268959770,0.12549,240.54,240.5,7.96182687]
[1738268960885,0.12549,240.54,240.48,7.96182687]
[1738268961291,0.12549,240.54,240.46,7.96182687]
[1738268961785,0.12549,240.52,240.46,7.96182687]
[1738268962592,0.25098,240.51,240.46,12.12042687]
[1738268962895,13.66282853,240.49,240.44,7.96182687]
[1738268963066,0.25098,240.49,240.43,4.1591]
[1738268963268,0.25098,240.49,240.42,12.37152687]
[1738268963791,0.25098,240.49,240.42,8.21222687]
[1738268963993,4.40928,240.49,240.42,8.21222687]
[1738268965410,12.37110687,240.49,240.42,8.21222687]
[1738268965618,12.37110687,240.49,240.42,0.2504]
[1738268965912,13.66282853,240.46,240.42,0.2504]
[1738268967007,17.82152853,240.46,240.42,0.2504]
[1738268967609,8.08731687,240.45,240.42,0.2504]
[1738268967779,0.12549,240.43,240.42,0.2504]
[1738268973198,4.28469,240.43,240.42,0.2504]
[1738268973387,4.53567,240.43,240.42,0.2504]
[1738268976302,25.9093454,240.43,240.42,0.2504]
[1738268976915,26.0348354,240.43,240.42,0.125]
[1738268979506,13.78831853,240.42,240.41,0.063]
[1738268980609,17.94761853,240.42,240.41,0.063]
[1738268982384,13.66282853,240.38,240.35,0.063]
[1738268982614,0.25098,240.36,240.35,0.063]
[1738268983130,0.37647,240.36,240.35,0.063]
[1738268983716,13.78831853,240.36,240.35,0.063]
[1738268985830,4.16,240.38,240.35,0.063]
[1738268986201,13.78831853,240.37,240.35,0.063]
[1738268986713,94.38831853,240.37,240.35,0.063]
[1738268987725,98.54851853,240.37,240.35,0.063]
[1738268988215,94.38831853,240.37,240.35,0.063]
[1738268988422,102.3501454,240.37,240.35,0.063]
[1738268989920,106.5103454,240.37,240.35,0.063]
[1738268997142,94.38831853,240.37,240.35,0.063]
[1738268997346,94.26282853,240.37,240.35,0.063]
[1738268999736,80.85098,240.37,240.35,0.063]
[1738268999945,80.72549,240.37,240.35,0.063]
[1738269000522,13.53733853,240.36,240.35,0.063]
[1738269002145,17.69773853,240.36,240.35,0.063]
[1738269003129,50.54504601,240.36,240.35,0.00254]
[1738269003537,50.67053601,240.36,240.35,0.00254]
[1738269004527,13.66282853,240.33,240.32,0.063]
[1738269004727,21.6246554,240.33,240.32,0.063]
[1738269005837,21.6246554,240.33,240.32,0.0001]
[1738269006141,28.2872554,240.33,240.32,0.0001]
[1738269006346,32.4481554,240.33,240.32,0.0001]
[1738269007949,13.53733853,240.27,240.23,8.55e-05]
[1738269008147,21.4991654,240.24,240.23,8.55e-05]
[1738269008330,13.53733853,240.24,240.23,8.55e-05]
[1738269010349,0.12549,240.24,240.23,8.55e-05]
[1738269014152,7.96182687,240.3,240.23,8.55e-05]
[1738269014855,0.12549,240.29,240.23,0.624392]
[1738269015354,0.12549,240.29,240.24,4.1625]
[1738269015528,0.12549,240.29,240.24,12.12432687]
[1738269015731,101.9736754,240.32,240.24,12.12432687]
[1738269015952,2.56193568,240.38,240.28,7.96182687]
[1738269015953,88.56182687,240.36,240.28,7.96182687]
[1738269016249,80.6,240.36,240.3,7.96182687]
[1738269016871,0.12549,240.35,240.3,7.96182687]
[1738269017357,0.12549,240.35,240.31,4.1612]
[1738269019350,0.03,240.36,240.31,4.1612]
[1738269021550,0.03,240.36,240.32,8.58596708]
[1738269021737,0.03,240.36,240.34,7.96182687]
[1738269026263,0.03,240.36,240.33,4.1609]
[1738269026763,0.03,240.36,240.32,7.96182687]
[1738269026961,0.03,240.36,240.31,5.6648]
[1738269026962,0.03,240.36,240.31,4.1612]
[1738269027157,0.12549,240.35,240.3,0.063]
[1738269027359,7.96182687,240.34,240.3,0.063]
[1738269027559,0.12549,240.33,240.3,0.063]
[1738269030140,0.12549,240.31,240.3,0.063]
[1738269030345,13.53733853,240.31,240.3,0.063]
[1738269030563,13.66282853,240.31,240.3,0.063]
[1738269031660,17.82402853,240.31,240.3,0.063]
[1738269033870,98.42402853,240.31,240.3,0.063]
[1738269035968,80.85098,240.31,240.3,0.063]
[1738269039881,94.26282853,240.31,240.3,0.063]
[1738269040056,98.42402853,240.31,240.3,0.063]
[1738269048861,20.0,240.28,240.23,8.55e-05]
[1738269049075,21.4991654,240.24,240.23,8.55e-05]
[1738269049276,25.6616654,240.24,240.23,8.55e-05]
[1738269052598,25.7871554,240.24,240.23,8.55e-05]
[1738269053292,57.63446288,240.24,240.23,8.55e-05]
[1738269053688,25.7871554,240.24,240.23,8.55e-05]
[1738269054473,0.12549,240.24,240.23,8.55e-05]
[1738269054872,20.12549,240.24,240.23,8.55e-05]
[1738269055097,0.12549,240.24,240.23,8.55e-05]
[1738269056173,12.37530687,240.24,240.23,8.55e-05]
[1738269056571,57.63446288,240.24,240.23,8.55e-05]
[1738269056772,25.9126454,240.24,240.23,8.55e-05]
[1738269057674,57.75995288,240.24,240.23,8.55e-05]
[1738269058192,57.75995288,240.24,240.22,8.55e-05]
[1738269058390,14.66282853,240.23,240.22,8.55e-05]
[1738269058790,31.32037274,240.23,240.22,8.55e-05]
[1738269059810,31.44586274,240.23,240.22,8.55e-05]
[1738269060294,31.44586274,240.23,240.19,0.063]
[1738269060295,20.25098,240.2,240.19,0.063]
[1738269060496,46.15777274,240.2,240.19,0.063]
[1738269061095,20.25098,240.17,240.1,0.063]
[1738269061287,20.25098,240.11,240.1,0.063]
[1738269061497,46.15777274,240.11,240.1,0.063]
[1738269062321,130.92247274,240.11,240.1,0.063]
[1738269062824,114.26282853,240.11,240.1,0.063]
[1738269063926,118.42752853,240.11,240.1,0.063]
[1738269065224,114.26282853,240.11,240.1,0.063]
[1738269065805,118.42752853,240.11,240.1,0.063]
[1738269073446,37.82752853,240.11,240.1,0.063]
[1738269079650,37.82752853,240.11,239.98,0.063]
[1738269079651,0.12549,240.02,239.98,0.063]
[1738269079817,0.25098,239.99,239.98,0.063]
[1738269080217,32.74592421,239.99,239.98,0.063]
[1738269080413,46.15777274,239.99,239.98,0.063]
[1738269081736,50.32457274,239.99,239.98,0.063]
[1738269082821,138.34587274,239.99,239.98,0.063]
[1738269083028,0.12549,239.9,239.85,0.063]
[1738269083229,12.87141421,239.88,239.85,0.063]
[1738269083438,12.74592421,239.86,239.85,0.063]
[1738269084347,12.49494421,239.91,239.85,0.063]
[1738269084756,12.49494421,239.9,239.85,0.063]
[1738269085040,0.12549,239.89,239.85,17.35251564]
[1738269085246,0.12549,239.89,239.87,12.49494421]
[1738269085457,0.12549,239.89,239.88,12.49494421]
[1738269085818,0.12549,239.9,239.88,12.49494421]
[1738269086351,11.8977805,239.95,239.88,16.66354421]
[1738269086536,12.49494421,239.93,239.88,4.1686]
[1738269086734,0.25098,239.94,239.88,4.1686]
[1738269087055,0.25098,239.94,239.89,13.12019761]
[1738269088247,0.25098,239.94,239.9,4.1684]
[1738269089746,0.12549,239.94,239.91,0.62520319]
[1738269089947,0.12549,239.94,239.9,4.79355293]
[1738269090246,0.12549,239.94,239.93,12.49494421]
[1738269090440,11.8977805,239.95,239.93,12.49494421]
[1738269090643,11.8977805,239.95,239.94,0.62505528]
[1738269090845,12.0232705,239.95,239.94,0.62505528]
[1738269091039,12.0232705,239.95,239.93,13.12002135]
[1738269091228,12.0232705,239.95,239.94,4.1677]
[1738269091428,0.12549,239.94,239.93,4.1677]
[1738269092239,32.49494421,240.01,239.93,4.1677]
[1738269092443,32.49494421,240.01,239.94,13.12000673]
[1738269092642,0.25098,240.0,239.94,13.12000673]
[1738269093452,0.25098,240.0,239.95,4.1675]
[1738269093629,20.25098,240.0,239.95,4.1675]
[1738269094441,93.09494421,240.05,239.96,13.1199846]
[1738269094637,12.49494421,240.05,239.96,13.1199846]
[1738269094847,12.49494421,240.07,240.0,12.49494421]
[1738269095351,12.49494421,240.09,240.0,12.49494421]
[1738269095562,4.1647,240.11,240.0,12.49494421]
[1738269095563,12.49494421,240.11,240.03,4.1661]
[1738269095734,12.49494421,240.11,240.03,4.7909317]
[1738269095938,12.49494421,240.13,240.06,12.49494421]
[1738269096153,12.49494421,240.15,240.07,0.62473181]
[1738269096365,0.03,240.16,240.1,12.49494421]
[1738269096557,0.03,240.16,240.11,0.62463077]
[1738269096736,0.03,240.16,240.1,12.49494421]
[1738269096737,0.12549,240.15,240.1,12.49494421]
[1738269096935,20.03,240.16,240.1,12.49494421]
[1738269097434,0.12549,240.15,240.08,12.49494421]
[1738269097675,0.12549,240.15,240.08,13.11964664]
[1738269098241,0.25098,240.15,240.08,13.11964664]
[1738269098550,0.25098,240.15,240.08,17.28484664]
[1738269098757,0.03,240.16,240.12,12.49494421]
[1738269099080,0.03,240.16,240.14,12.49494421]
[1738269099243,0.03,240.16,240.13,0.62456318]
[1738269099848,0.03,240.16,240.12,13.11952561]
[1738269100449,0.03,240.16,240.12,17.28392561]
[1738269100855,0.03,240.16,240.14,12.49494421]
[1738269101666,0.03,240.16,240.15,0.6245557]
[1738269102079,0.15549,240.16,240.15,0.6245557]
[1738269104389,19.65611059,240.18,240.15,0.6245557]
[1738269105393,12.49494421,240.25,240.16,12.49494421]
[1738269105560,12.49494421,240.25,240.18,12.49494421]
[1738269106161,12.49494421,240.27,240.2,12.49494421]
[1738269106356,12.49494421,240.27,240.21,0.6243716]
[1738269106888,0.12549,240.26,240.21,0.6243716]
[1738269107306,0.12549,240.26,240.21,4.7872716]
[1738269107511,0.12549,240.23,240.18,12.49494421]
[1738269107691,0.12549,240.23,240.16,12.49494421]
[1738269107894,0.12549,240.21,240.15,0.62433493]
[1738269108976,4.41398,240.21,240.15,0.62433493]
[1738269109303,0.12549,240.18,240.12,12.49494421]
[1738269109478,0.12549,240.18,240.13,0.62454058]
[1738269110608,0.25098,240.19,240.13,0.62454058]
[1738269110991,0.25098,240.19,240.13,4.78894058]
[1738269114285,0.25098,240.19,240.13,4.85194058]
[1738269114899,0.25098,240.19,240.12,16.23199833]
[1738269115289,0.12549,240.19,240.14,12.49494421]
[1738269115495,13.41184853,240.24,240.16,12.49494421]
[1738269115699,13.41184853,240.24,240.17,0.62445894]
[1738269116106,20.0,240.23,240.18,12.49494421]
[1738269116309,20.0,240.23,240.19,0.62442861]
[1738269116615,0.12549,240.22,240.18,12.49494421]
[1738269117620,0.12549,240.22,240.19,0.62443076]
[1738269118242,12.52494421,240.26,240.19,0.62443076]
[1738269118411,0.03,240.26,240.2,12.49494421]
[1738269118615,0.03,240.26,240.21,0.62436196]
[1738269118926,0.03,240.26,240.24,12.49494421]
[1738269119128,0.03,240.26,240.25,0.62425693]
[1738269120738,0.03,240.26,240.25,4.78655693]
[1738269122041,0.03,240.26,240.25,0.62425693]
[1738269122239,0.03,240.26,240.24,13.11920866]
[1738269124147,0.03,240.26,240.21,13.11922891]
[1738269124456,0.03,240.26,240.17,93.31178598]
[1738269124457,12.62043421,240.25,240.17,93.31178598]
[1738269124635,12.62043421,240.25,240.17,89.14828598]
[1738269125035,0.12549,240.22,240.17,76.65334177]
[1738269125243,0.12549,240.22,240.17,77.27781154]
[1738269126328,0.12549,240.22,240.17,76.65334177]
[1738269126565,4.28829,240.22,240.15,12.49494421]
[1738269126734,4.28829,240.22,240.1,84.65714177]
[1738269126735,0.12549,240.2,240.13,12.49494421]
[1738269126940,0.12549,240.18,240.12,0.6875415]
[1738269127566,0.25098,240.18,240.12,0.6875415]
[1738269128057,0.25098,240.18,240.12,4.8519415]
[1738269131067,0.12549,240.15,240.12,0.6875415]
[1738269131643,0.12549,240.15,240.12,4.8520415]
[1738269132768,0.12549,240.15,240.12,0.063]
[1738269133971,17.70143853,240.15,240.12,0.063]
[1738269136065,0.12549,240.15,240.12,0.063]
[1738269136372,0.12549,240.14,240.12,0.063]
[1738269136752,20.12549,240.13,240.12,0.063]
[1738269136942,24.28989,240.13,240.12,0.063]
[1738269137874,36.78483421,240.13,240.12,0.063]
[1738269138669,32.62043421,240.13,240.12,0.063]
[1738269139050,20.12549,240.13,240.12,0.063]
[1738269141364,24.28989,240.13,240.12,0.063]
[1738269142873,20.12549,240.13,240.12,0.063]
[1738269144458,24.28989,240.13,240.12,0.063]
[1738269145873,36.78483421,240.13,240.12,0.063]
[1738269146589,24.28989,240.13,240.12,0.063]
[1738269149076,17.70173853,240.13,240.12,0.063]
[1738269151180,23.88403853,240.13,240.12,0.063]
[1738269152698,23.91954315,240.13,240.12,0.063]
[1738269153294,20.25098,240.09,239.97,0.62487028]
[1738269153598,0.25098,239.99,239.94,138.5263]
[1738269153802,0.25098,239.99,239.94,1.5263]
[1738269154003,0.25098,239.99,239.94,10.14895926]
[1738269154597,0.25098,240.01,239.94,18.82769603]
[1738269155100,13.41184853,240.05,239.96,12.50874304]
[1738269155101,12.50874304,240.04,239.96,12.50874304]
[1738269155401,16.67324304,240.12,240.02,12.50874304]
[1738269155582,16.67324304,240.12,240.03,0.62482211]
[1738269155978,16.67324304,240.12,240.04,12.50874304]
[1738269156482,20.0,240.09,240.05,0.62480146]
[1738269156687,20.0,240.09,240.04,16.67454304]
[1738269157906,0.12549,240.08,240.04,16.67454304]
[1738269159108,0.25098,240.11,240.05,0.62480542]
[1738269159481,0.25098,240.11,240.04,16.67454304]
[1738269159705,0.25098,240.11,240.04,4.1658]
[1738269160284,0.25098,240.11,240.05,0.62479696]
[1738269160498,0.25098,240.11,240.05,4.79049696]
[1738269168228,0.03,240.13,240.06,12.50874304]
[1738269168385,0.03,240.13,240.1,12.50874304]
[1738269168718,0.03,240.13,240.11,0.62459605]
[1738269170414,0.03,240.13,240.12,16.67324304]
[1738269171618,0.03,240.13,240.11,4.78929605]
[1738269171814,0.03,240.13,240.11,0.62459605]
[1738269172206,0.03,240.13,240.08,17.29859573]
[1738269172409,0.03,240.13,240.1,12.50874304]
[1738269172607,0.03,240.13,240.11,0.62462424]
[1738269174401,0.15549,240.13,240.08,0.62463714]
[1738269176609,0.03,240.13,240.08,12.78705195]
[1738269177232,0.15549,240.13,240.06,8.62190775]
[1738269177613,0.15549,240.13,240.06,12.78750775]
[1738269178505,0.12549,240.1,240.05,76.65334177]
[1738269178707,0.12549,240.1,240.05,0.62478228]
[1738269181841,0.25098,240.1,240.05,0.62478228]
[1738269182144,0.25098,240.1,240.05,4.79048228]
[1738269183560,0.12549,240.1,240.06,12.16271481]
[1738269183855,0.12549,240.1,240.07,0.62470271]
[1738269184147,0.25098,240.1,240.04,12.16311481]
[1738269184354,0.12549,240.1,240.05,0.62477792]
[1738269184533,0.25098,240.07,240.0,12.78867018]
[1738269185832,0.12549,240.09,240.02,7.99721481]
[1738269186031,0.12549,240.09,240.03,0.62483997]
[1738269187153,4.29059,240.09,240.03,0.62483997]
[1738269187452,4.29059,240.09,240.02,8.62205361]
[1738269187847,4.29059,240.09,240.02,12.78825361]
[1738269188155,0.12549,240.07,240.03,0.063]
[1738269188568,0.12549,240.05,240.03,0.063]
[1738269188763,21.53455334,240.04,240.03,0.063]
[1738269189672,21.66004334,240.04,240.03,0.063]
[1738269190176,25.82594334,240.04,240.03,0.063]
[1738269196978,12.41409481,240.04,240.03,0.063]
[1738269197564,25.82594334,240.04,240.03,0.063]
[1738269200925,12.41409481,240.04,240.03,0.063]
[1738269201259,28.24819481,240.04,240.03,0.063]
[1738269201685,20.25098,240.04,240.03,0.063]
[1738269203672,0.25098,240.04,240.03,0.063]
[1738269204308,0.12549,240.04,240.03,0.063]
[1738269206112,0.03,240.12,240.03,4.85395188]
[1738269206278,0.03,240.12,240.11,7.99721481]
[1738269206483,0.03,240.12,240.11,8.62187042]
[1738269207716,0.03,240.12,240.11,12.16191481]
[1738269208090,0.03,240.12,240.11,12.78645667]
[1738269212420,0.03,240.12,240.11,226.43979844]
[1738269212720,0.03,240.12,240.11,225.81525658]
[1738269214527,0.03,240.12,240.11,221.65055658]
[1738269214822,0.03,240.12,240.11,225.81525658]
[1738269217610,0.03,240.13,240.12,1.0]
[1738269217923,0.03,240.13,240.12,1.62440955]
[1738269218644,0.03,240.13,240.12,5.78890955]
[1738269219513,0.03,240.13,240.12,4.78890955]
[1738269221527,0.03,240.13,240.12,218.44225132]
[1738269221727,0.03,240.13,240.12,217.81784177]
[1738269222106,0.0001,240.13,240.12,231.2296903]
[1738269222326,0.0001,240.13,240.12,263.21854954]
[1738269224104,0.0001,240.13,240.12,264.21854954]
[1738269224308,0.03,240.26,240.15,34.41184853]
[1738269224509,0.03,240.26,240.22,7.99721481]
[1738269224725,0.03,240.26,240.23,0.62429418]
[1738269225413,0.03,240.26,240.23,4.78679418]
[1738269225914,0.03,240.26,240.23,0.62429418]
[1738269226109,0.03,240.26,240.2,7.99721481]
[1738269226436,0.03,240.26,240.18,0.62431163]
[1738269226437,0.25098,240.25,240.18,8.62156361]
[1738269226635,8.24819481,240.25,240.18,12.78486361]
[1738269227638,12.41059481,240.25,240.18,4.7876488]
[1738269227943,12.41059481,240.25,240.18,0.6243488]
[1738269228129,0.12549,240.22,240.18,0.6243488]
[1738269229839,0.12549,240.22,240.17,76.65334177]
[1738269230141,0.12549,240.22,240.17,77.27782213]
[1738269230343,0.12549,240.22,240.17,77.27782467]
[1738269231348,0.12549,240.22,240.17,76.65334177]
[1738269231726,4.28829,240.22,240.17,76.65334177]
[1738269232243,0.12549,240.22,240.17,76.65334177]
[1738269232448,0.12549,240.22,240.17,80.81704177]
[1738269233138,0.12549,240.22,240.17,81.44150127]
[1738269233338,0.12549,240.22,240.17,4.7881595]
[1738269233845,0.12549,240.22,240.17,0.6244595]
[1738269234052,4.28829,240.22,240.16,7.99721481]
[1738269234253,0.12549,240.22,240.16,7.99721481]
[1738269235149,0.12549,240.21,240.16,12.16091481]
[1738269237153,0.12549,240.21,240.17,0.62449072]
[1738269237635,0.03,240.25,240.2,7.99721481]
[1738269238846,0.03,240.25,240.18,7.99721481]
[1738269239147,0.03,240.25,240.19,4.78761079]
[1738269239321,0.12549,240.2,240.15,0.62441415]
[1738269239527,7.99721481,240.21,240.14,77.27784798]
[1738269239528,7.99721481,240.17,240.14,77.27784798]
[1738269239826,7.99721481,240.17,240.13,137.063]
[1738269239827,0.12549,240.16,240.13,0.063]
[1738269240345,0.12549,240.16,240.13,0.68761234]
[1738269240550,0.12549,240.18,240.13,0.68761234]
[1738269240847,0.12549,240.18,240.16,7.99721481]
[1738269241140,7.9662,240.21,240.13,0.68746574]
[1738269241141,8.12270481,240.2,240.13,0.68746574]
[1738269241348,0.12549,240.17,240.13,0.063]
[1738269242454,8.12270481,240.14,240.13,0.063]
[1738269243028,0.25098,240.14,240.13,0.063]
[1738269246353,0.12549,240.14,240.13,0.063]
[1738269246664,0.12549,240.14,240.13,4.2274]
[1738269249349,0.12549,240.14,240.13,0.063]
[1738269250038,8.24819481,240.14,240.13,0.063]
[1738269250359,0.25098,240.14,240.13,0.063]
[1738269250652,25.82424334,240.14,240.13,0.063]
[1738269251249,12.41239481,240.14,240.13,0.063]
[1738269251859,25.82424334,240.14,240.13,0.063]
[1738269252952,31.87844334,240.14,240.13,0.063]
[1738269253159,94.01184853,240.13,240.11,0.063]
[1738269253360,39.98607405,240.12,240.11,0.063]
[1738269253658,53.52341258,240.12,240.11,0.063]
[1738269254167,57.68791258,240.12,240.11,0.063]
[1738269255056,25.69905334,240.12,240.11,0.063]
[1738269255750,21.53455334,240.12,240.11,0.063]
[1738269256959,21.66004334,240.12,240.11,0.063]
[1738269257265,8.24819481,240.12,240.11,0.063]
[1738269257475,28.24819481,240.12,240.11,0.063]
[1738269257873,8.24819481,240.12,240.11,0.063]
[1738269258178,0.25098,240.12,240.11,0.063]
[1738269259060,20.25098,240.12,240.11,0.063]
[1738269259777,0.12549,240.12,240.11,0.063]
[1738269261874,0.12549,240.12,240.11,4.85237164]
[1738269262256,0.12549,240.12,240.11,4.2277]
[1738269263980,0.12549,240.12,240.11,0.063]
[1738269264281,0.25098,240.12,240.11,0.063]
[1738269266059,0.12549,240.12,240.11,0.063]
[1738269266287,0.12549,240.12,240.11,4.2277]
[1738269266585,0.12549,240.12,240.11,4.85233702]
[1738269268181,0.12549,240.12,240.11,0.063]
[1738269271790,0.25098,240.12,240.11,0.063]
[1738269274875,17.82732853,240.12,240.11,0.063]
[1738269279003,25.82454334,240.12,240.11,0.063]
[1738269279188,0.25098,240.12,240.11,0.063]
[1738269282305,0.12549,240.12,240.11,0.063]
[1738269282601,0.12549,240.12,240.11,4.2277]
[1738269286110,0.12549,240.12,240.11,0.063]
[1738269287493,0.12549,240.12,240.11,4.2277]
[1738269288005,0.03,240.13,240.11,4.2277]
[1738269288006,0.03,240.13,240.11,149.84957947]
[1738269288305,0.03,240.13,240.11,225.87825658]
[1738269289299,0.03,240.13,240.12,0.6245161]
[1738269290108,0.03,240.13,240.12,4.7890161]
[1738269292697,0.03,240.13,240.12,141.7890161]
[1738269292897,0.03,240.13,240.12,141.1645]
[1738269298527,0.03,240.13,240.12,217.81784177]
[1738269303538,0.03,240.13,240.12,213.65334177]
[1738269304011,0.03,240.13,240.11,0.063]
[1738269305014,0.12549,240.12,240.11,0.063]
[1738269305344,0.25098,240.12,240.11,0.063]
[1738269306318,8.24819481,240.12,240.11,0.063]
[1738269307158,0.03,240.13,240.11,8.06021481]
[1738269307323,0.03,240.13,240.12,8.62182307]
[1738269307648,0.03,240.13,240.11,12.22491481]
[1738269307936,0.03,240.13,240.12,0.62462087]
[1738269308146,0.03,240.13,240.11,12.47501481]
[1738269308347,0.03,240.13,240.12,0.62461326]
[1738269308536,0.03,240.13,240.11,12.47501481]
[1738269308723,0.03,240.13,240.12,0.62460753]
[1738269308933,0.03,240.13,240.12,4.78910753]
[1738269309327,0.03,240.13,240.12,12.78632234]
[1738269310154,0.03,240.13,240.12,226.43966411]
[1738269310342,0.03,240.13,240.12,225.81505658]
[1738269311150,0.03,240.13,240.12,257.80391582]
[1738269311536,0.03,240.13,240.12,225.81505658]
[1738269311923,0.03,240.13,240.12,226.81505658]
[1738269312232,0.03,240.13,240.12,258.80391582]
[1738269313437,0.03,240.13,240.12,257.80391582]
[1738269313633,0.03,240.13,240.12,225.81505658]
[1738269314950,0.03,240.13,240.12,257.80391582]
[1738269315951,0.03,240.13,240.12,225.81505658]
[1738269316143,0.03,240.13,240.12,226.81505658]
[1738269316849,0.03,240.13,240.12,225.81505658]
[1738269320452,0.03,240.13,240.12,225.87805658]
[1738269329869,0.03,240.13,240.12,226.12815658]
[1738269334373,0.03,240.17,240.13,1.0]
[1738269334555,0.03,240.17,240.16,7.99721481]
[1738269336346,0.03,240.17,240.16,4.1638]
[1738269336670,0.03,240.17,240.16,4.78824927]
[1738269340176,0.03,240.17,240.16,218.44159104]
[1738269340375,0.03,240.17,240.16,217.81714177]
[1738269348488,0.0001,240.17,240.16,217.81714177]
[1738269350090,0.0001,240.17,240.16,218.06724177]
[1738269352988,0.0001,240.17,240.16,94.4790903]
[1738269353289,0.03,240.25,240.21,1.0]
[1738269353487,0.03,240.25,240.24,7.99721481]
[1738269354576,0.03,240.25,240.24,221.65055658]
[1738269355190,0.03,240.25,240.24,225.81305658]
[1738269360480,0.03,240.25,240.24,76.65334177]
[1738269361167,0.03,240.25,240.2,7.99721481]
[1738269361478,0.03,240.25,240.2,0.62435061]
[1738269361878,0.03,240.25,240.2,4.78745061]
[1738269362075,0.03,240.25,240.2,12.78466542]
[1738269362273,0.03,240.25,240.21,7.99721481]
[1738269362492,0.03,240.25,240.23,7.99721481]
[1738269362695,0.03,240.25,240.24,4.78676762]
[1738269363299,0.03,240.25,240.24,12.78398243]
[1738269367013,0.03,240.25,240.24,89.4373242]
[1738269367215,0.03,240.25,240.24,88.81305658]
[1738269369218,0.03,240.25,240.24,80.81584177]
[1738269369424,0.03,240.25,240.24,81.44013127]
[1738269369821,0.03,240.25,240.24,81.69023127]
[1738269370123,0.03,240.25,240.24,77.52773127]
[1738269370426,0.15549,240.25,240.24,76.90344177]
[1738269370794,0.03,240.25,240.24,76.90344177]
[1738269372798,0.03,240.25,240.24,0.2501]
[1738269374231,14.77470481,240.25,240.24,0.2501]
[1738269375314,29.85285334,240.25,240.24,0.2501]
[1738269376123,34.01515334,240.25,240.24,0.2501]
[1738269378719,12.60609,240.25,240.24,0.2501]
[1738269378916,8.44379,240.25,240.24,0.2501]
[1738269379116,9.06928,240.25,240.24,0.2501]
[1738269379317,13.23158,240.25,240.24,0.2501]
[1738269379542,21.22879481,240.25,240.24,0.2501]